bitfinex/quotes_ETHUSD_20260314
["timestamp","ask_amount","ask_price","bid_price","bid_amount"]
[1773521130857,3.74386707,2082.6,2082.5,0.001]
[1773521131235,2.54244453,2082.5,2082.1,2.29416755]
[1773521131459,2.54444453,2082.5,2082.1,0.001]
[1773521131841,2.54444453,2082.5,2082.2,0.001]
[1773521133963,3.74493029,2082.5,2082.2,0.001]
[1773521134163,2.20982455,2082.4,2082.2,0.001]
[1773521135036,0.33461998,2082.5,2082.2,0.001]
[1773521135244,0.002,2082.5,2082.2,2.29416755]
[1773521135539,0.002,2082.5,2082.2,2.34219367]
[1773521135745,2.21182455,2082.5,2082.2,2.34219367]
[1773521137269,3.41234652,2082.5,2082.2,2.34219367]
[1773521137568,2.21182455,2082.5,2082.2,2.34219367]
[1773521138563,2.21182455,2082.5,2082.2,2.29416755]
[1773521139466,2.25983238,2082.5,2082.2,2.29416755]
[1773521140253,0.33261998,2082.4,2082.2,2.29416755]
[1773521141977,2.54244453,2082.4,2082.2,0.001]
[1773521142155,2.54244453,2082.3,2082.2,0.001]
[1773521143877,2.54444453,2082.3,2082.2,0.001]
[1773521146100,0.33261998,2082.2,2082.0,2.34219828]
[1773521146271,0.33261998,2082.2,2082.0,2.29416755]
[1773521146799,0.33261998,2082.2,2082.0,2.34219828]
[1773521148095,0.002,2082.5,2082.1,3.49385683]
[1773521148281,2.21182455,2082.5,2082.1,3.49385683]
[1773521149198,0.04800783,2082.4,2082.1,3.49385683]
[1773521150497,0.04800783,2082.4,2082.1,2.29316755]
[1773521151793,1.2504884,2082.5,2082.1,2.29316755]
[1773521151998,3.44149755,2082.5,2082.1,2.29316755]
[1773521153607,2.24101698,2082.5,2082.1,3.49387405]
[1773521153900,3.44149863,2082.5,2082.1,2.29316755]
[1773521156707,3.44149863,2082.5,2082.2,0.001]
[1773521157001,0.002,2082.3,2082.2,0.001]
[1773521162613,0.002,2082.3,2082.0,1.20172268]
[1773521162614,2.19300915,2082.3,2082.0,2.34936335]
[1773521163197,2.19300915,2082.3,2082.0,3.55013061]
[1773521163392,0.002,2082.3,2082.0,3.55013061]
[1773521163596,0.002,2082.3,2082.1,2.30033262]
[1773521165792,0.002,2082.3,2082.1,1.20070941]
[1773521165992,0.002,2082.7,2082.4,2.30033262]
[1773521166197,0.002,2083.0,2082.6,2.30033262]
[1773521166498,1.2021924,2083.0,2082.6,2.30033262]
[1773521166702,0.002,2083.0,2082.6,2.30033262]
[1773521167297,1.20219936,2083.0,2082.6,2.30033262]
[1773521167493,3.39320851,2083.0,2082.6,2.30033262]
[1773521168416,2.19100915,2082.9,2082.6,2.30033262]
[1773521170823,0.002,2083.0,2082.6,2.30033262]
[1773521171023,0.002,2083.0,2082.6,1.20041945]
[1773521171191,0.002,2083.0,2082.7,2.30033262]
[1773521173199,0.002,2083.0,2082.7,3.50068795]
[1773521177327,0.002,2083.0,2082.7,2.30033262]
[1773521179731,2.19300915,2083.0,2082.7,2.30033262]
[1773521181637,0.002,2082.8,2082.7,2.30033262]
[1773521185148,0.002,2082.8,2082.5,3.50035544]
[1773521188913,0.002,2082.8,2082.6,2.29991862]
[1773521191143,0.002,2082.8,2082.6,3.50029832]
[1773521192574,2.22218354,2082.8,2082.4,0.001]
[1773521192722,2.22218354,2082.8,2082.4,1.20153253]
[1773521193050,2.22218354,2082.8,2082.4,1.20153034]
[1773521194624,2.22218354,2082.8,2082.5,0.001]
[1773521195248,2.22018354,2082.7,2082.5,0.001]
[1773521206967,0.002,2082.6,2082.5,0.001]
[1773521211770,0.002,2082.8,2082.5,2.29319107]
[1773521211950,0.0012,2082.8,2082.5,0.001]
[1773521212154,2.24159492,2082.8,2082.5,0.001]
[1773521217787,2.24039492,2082.6,2082.4,0.001]
[1773521217960,3.44194104,2082.8,2082.4,2.29319107]
[1773521218288,0.0012,2082.8,2082.5,2.29219107]
[1773521220397,0.0012,2082.8,2082.6,2.29219107]
[1773521220688,0.002,2083.0,2082.7,2.29319107]
[1773521221289,3.44258977,2083.0,2082.7,2.29319107]
[1773521221489,3.4425914,2083.0,2082.7,2.29319107]
[1773521221860,2.24239492,2083.0,2082.7,2.29319107]
[1773521223188,0.002,2083.3,2082.8,2.29219107]
[1773521224887,0.002,2083.3,2083.0,2.29219107]
[1773521232982,0.002,2083.1,2083.0,2.29219107]
[1773521237502,2.24039492,2083.7,2083.0,2.29219107]
[1773521237685,0.9603,2083.9,2082.9,0.001]
[1773521237686,2.24039492,2083.9,2083.5,3.49209507]
[1773521238193,2.24039492,2083.9,2083.5,2.29219107]
[1773521238398,2.24039492,2084.1,2083.5,2.29219107]
[1773521239105,5.75827953,2084.3,2083.5,2.29219107]
[1773521239106,3.20069492,2084.3,2083.6,2.29219107]
[1773521239301,3.20069492,2084.4,2083.6,2.29219107]
[1773521239503,2.24039492,2084.3,2083.6,2.29219107]
[1773521240007,3.43985019,2084.3,2083.7,1.19978883]
[1773521240214,3.43985019,2084.3,2083.8,2.29219107]
[1773521240409,2.24039492,2084.2,2083.8,2.29219107]
[1773521241509,2.24039492,2084.6,2084.0,2.29219107]
[1773521242313,2.12832794,2084.4,2084.0,3.49179527]
[1773521245125,2.12832794,2084.4,2084.1,2.32563829]
[1773521245492,0.002,2084.2,2084.1,2.32563829]
[1773521245689,0.9603,2084.5,2084.1,2.32563829]
[1773521246013,2.12832794,2084.6,2084.1,2.32563829]
[1773521246217,0.002,2084.4,2084.1,2.32563829]
[1773521246440,0.002,2084.4,2084.2,1.199501]
[1773521247525,2.13032794,2084.4,2084.1,3.52515191]
[1773521247727,2.13032794,2084.4,2083.9,3.52531197]
[1773521248591,2.13032794,2084.4,2084.0,2.32563829]
[1773521248825,0.002,2084.4,2084.0,2.32563829]
[1773521250412,2.12832794,2084.6,2084.0,2.32563829]
[1773521250715,2.12832794,2084.8,2084.2,2.32563829]
[1773521251696,2.12832794,2084.8,2084.1,1.19955856]
[1773521251895,2.12832794,2084.8,2084.1,3.52519685]
[1773521253726,2.12832794,2084.6,2084.1,3.52519685]
[1773521255625,2.12832794,2084.6,2083.9,3.52531197]
[1773521255836,2.12832794,2084.4,2083.9,3.52531197]
[1773521256125,2.12832794,2084.4,2084.0,2.32563829]
[1773521258252,2.13032794,2084.4,2084.1,1.19955856]
[1773521259125,2.12832794,2084.3,2083.8,7.12442765]
[1773521259334,2.12832794,2084.3,2083.9,1.19967368]
[1773521260051,2.12832794,2084.3,2083.9,3.52531197]
[1773521261466,2.12832794,2084.3,2084.0,2.32563829]
[1773521263568,2.12832794,2084.3,2083.8,3.5253409]
[1773521263939,2.12832794,2084.3,2083.8,1.19970261]
[1773521264248,2.12832794,2084.3,2083.9,2.32563829]
[1773521266664,3.32777783,2084.3,2083.9,2.32563829]
[1773521267364,0.002,2084.6,2084.3,2.32563829]
[1773521267727,0.002,2084.6,2084.4,1.19938591]
[1773521267958,2.12832794,2085.0,2084.5,2.32563829]
[1773521269241,0.10616832,2087.5,2084.6,1.70137771]
[1773521269441,19.90131249,2090.0,2084.6,1.70137771]
[1773521269442,1.59377015,2087.0,2086.2,0.7551944]
[1773521269647,4.79041916,2087.6,2085.7,1.70137771]
[1773521269648,1.59377015,2086.6,2085.7,1.70137771]
[1773521269846,1.59377015,2086.6,2085.2,0.065536]
[1773521269847,1.59377015,2086.3,2085.8,2.84168631]
[1773521270031,5.63368901,2085.9,2085.3,2.27334905]
[1773521270230,1.5639074,2085.9,2085.2,2.90028822]
[1773521270569,1.5639074,2086.4,2085.3,1.70137771]
[1773521270778,1.5639074,2086.3,2085.3,1.70137771]
[1773521271266,5.63368901,2086.3,2085.3,1.70137771]
[1773521271444,1.5639074,2086.3,2085.3,1.70137771]
[1773521271643,1.69344675,2086.2,2085.3,1.70137771]
[1773521271883,1.69344675,2086.2,2085.3,2.90023494]
[1773521272239,1.66683994,2085.9,2085.3,1.70137771]
[1773521272775,1.66683994,2086.2,2085.5,1.86950973]
[1773521273284,5.73662155,2086.2,2085.5,1.86950973]
[1773521273839,1.63776404,2086.4,2085.5,1.86950973]
[1773521274085,4.06978161,2086.3,2085.6,3.06820554]
[1773521274666,4.06978161,2086.2,2085.6,3.06820554]
[1773521274868,1.63776404,2086.4,2085.6,3.06820554]
[1773521275063,4.06978161,2086.2,2085.6,3.06820554]
[1773521275244,1.63776404,2086.4,2085.7,1.86950973]
[1773521276639,4.06978161,2086.2,2085.7,1.86950973]
[1773521276841,4.06978161,2086.2,2085.7,3.06814201]
[1773521278676,4.06978161,2086.2,2085.7,3.0681451]
[1773521279164,4.06978161,2086.2,2085.7,1.86950973]
[1773521279343,4.06978161,2086.2,2085.7,3.06814514]
[1773521279666,4.06978161,2086.2,2085.7,3.06813648]
[1773521279906,4.06978161,2086.1,2085.7,1.86950973]
[1773521280201,1.6650804,2086.2,2085.7,1.86950973]
[1773521280339,5.73486201,2086.2,2085.7,1.86950973]
[1773521280545,1.67583308,2086.1,2085.5,1.86950973]
[1773521280971,1.68644065,2085.9,2085.3,1.19884019]
[1773521281157,1.68644065,2085.9,2085.0,1.86950973]
[1773521281366,4.06978161,2085.8,2085.0,1.86950973]
[1773521281558,1.68644065,2085.7,2085.0,1.86950973]
[1773521281958,5.75622226,2085.6,2085.0,1.86950973]
[1773521282176,1.68644065,2085.6,2085.0,1.86950973]
[1773521282479,5.76669401,2085.6,2085.0,3.06850898]
[1773521282680,1.6969124,2085.6,2085.0,3.06849774]
[1773521282883,1.6969124,2085.6,2085.0,1.86950973]
[1773521283053,1.6969124,2085.6,2085.0,3.06853525]
[1773521283457,4.06978161,2085.5,2085.0,3.06853525]
[1773521284573,4.06978161,2085.4,2085.0,1.86950973]
[1773521284763,1.71741372,2085.5,2085.0,1.86950973]
[1773521284965,4.06978161,2085.4,2085.0,1.86950973]
[1773521285176,4.06978161,2085.4,2085.0,3.06854224]
[1773521285373,1.71741372,2085.5,2085.0,3.06854224]
[1773521285580,4.06978161,2085.3,2085.0,3.06854224]
[1773521286085,1.71741372,2085.5,2085.0,3.06854224]
[1773521286590,4.06978161,2085.3,2085.0,3.06854224]
[1773521287081,0.9623,2085.6,2085.1,1.86950973]
[1773521287288,4.06978161,2085.4,2085.1,1.86950973]
[1773521287668,4.06978161,2085.3,2085.1,1.86950973]
[1773521287869,0.9623,2085.6,2085.1,1.86950973]
[1773521288184,4.06978161,2085.4,2085.1,1.86950973]
[1773521288492,0.002,2085.8,2085.4,1.86950973]
[1773521288789,0.002,2085.8,2085.5,1.19875329]
[1773521289091,4.07178161,2085.8,2085.5,3.06826302]
[1773521289286,0.002,2085.8,2085.5,3.06826302]
[1773521289472,4.06978161,2085.7,2085.5,3.06826302]
[1773521289965,0.9603,2086.1,2085.6,1.86950973]
[1773521290560,0.9603,2086.1,2085.7,1.19863834]
[1773521290761,0.9603,2086.1,2085.7,3.06814807]
[1773521291266,0.9603,2086.1,2085.4,1.86950973]
[1773521291267,1.73374196,2086.0,2085.4,1.86950973]
[1773521293130,1.73374196,2086.0,2085.5,1.19875329]
[1773521293898,1.73374196,2085.8,2085.2,3.06840374]
[1773521294101,1.73374196,2085.8,2085.2,3.06842643]
[1773521294396,1.73374196,2085.7,2085.2,3.06842643]
[1773521297402,1.73374196,2085.7,2085.2,3.06942643]
[1773521300814,1.73374196,2085.7,2085.3,1.86950973]
[1773521301021,2.16090828,2085.8,2085.3,1.86950973]
[1773521301218,1.73374196,2085.7,2085.3,1.86950973]
[1773521301417,1.73374196,2085.7,2085.3,3.06837205]
[1773521309200,0.002,2085.8,2085.4,1.93621792]
[1773521310017,3.0368391,2086.1,2085.5,1.93621792]
[1773521310211,3.9971391,2086.1,2085.5,1.93621792]
[1773521310622,1.83841678,2086.0,2085.5,1.93621792]
[1773521311036,1.83841678,2086.0,2085.6,1.93621792]
[1773521311569,1.83841678,2086.0,2085.5,1.93621792]
[1773521311570,1.83841678,2085.9,2085.5,1.93621792]
[1773521311836,3.99715838,2086.1,2085.5,1.93621792]
[1773521312043,1.83841678,2086.0,2085.5,1.93621792]
[1773521312248,0.002,2085.8,2085.5,1.93621792]
[1773521312409,1.84041678,2085.8,2085.4,1.19977006]
[1773521312600,1.84041678,2085.8,2085.4,3.13598798]
[1773521314834,0.9603,2085.7,2085.4,3.13598798]
[1773521315031,1.84041678,2085.8,2085.4,3.13598798]
[1773521315736,1.84041678,2085.8,2085.5,1.93621792]
[1773521316613,0.002,2085.8,2085.5,1.93621792]
[1773521322443,1.84041678,2085.8,2085.5,1.93621792]
[1773521323447,0.002,2085.8,2085.5,1.93621792]
[1773521324550,0.002,2085.8,2085.6,1.93621792]
[1773521324751,0.002,2085.8,2085.7,0.001]
[1773521327454,1.84041678,2085.8,2085.7,0.001]
[1773521328764,3.03899766,2085.8,2085.7,0.001]
[1773521329635,1.84041678,2085.8,2085.7,0.001]
[1773521333572,0.9603,2085.6,2085.4,0.001]
[1773521333755,2.08002171,2085.5,2085.4,0.001]
[1773521335035,3.04032171,2085.5,2085.4,0.001]
[1773521335254,2.08002171,2085.4,2085.2,0.001]
[1773521336336,3.27888716,2085.4,2085.2,0.001]
[1773521338448,2.08002171,2085.3,2085.2,0.001]
[1773521340247,3.27888997,2085.3,2085.2,0.001]
[1773521340975,2.08002171,2085.2,2085.0,0.001]
[1773521342274,3.27899842,2085.2,2085.0,0.001]
[1773521342857,2.08002171,2085.2,2085.0,0.001]
[1773521343058,2.08002171,2085.4,2085.0,1.99144487]
[1773521343269,3.27886967,2085.4,2085.0,1.99144487]
[1773521345076,0.9603,2085.3,2085.0,1.99144487]
[1773521345278,3.27886967,2085.4,2085.0,1.99144487]
[1773521346184,2.08002171,2085.3,2085.0,1.99144487]
[1773521346357,0.002,2085.6,2085.2,1.99044487]
[1773521346551,0.002,2085.6,2085.3,1.99044487]
[1773521347883,2.08202171,2085.6,2085.3,1.99044487]
[1773521348881,3.28073534,2085.6,2085.3,1.99044487]
[1773521350457,2.08202171,2085.6,2085.3,1.99044487]
[1773521350978,3.28072052,2085.6,2085.3,1.99044487]
[1773521351681,0.002,2085.4,2085.3,1.99044487]
[1773521352464,0.002,2085.6,2085.4,1.99044487]
[1773521352666,0.002,2085.8,2085.4,1.99044487]
[1773521353668,0.002,2085.8,2085.5,1.99044487]
[1773521354292,0.002,2085.8,2085.2,0.001]
[1773521354293,2.08002171,2085.7,2085.2,0.001]
[1773521355166,2.08002171,2085.5,2085.2,0.001]
[1773521355675,2.08002171,2085.4,2085.2,0.001]
[1773521360368,3.27883334,2085.4,2085.2,0.001]
[1773521360569,3.27883334,2085.4,2085.0,0.001]
[1773521360570,0.9603,2085.2,2085.0,0.001]
[1773521360790,3.04032171,2085.2,2085.0,0.001]
[1773521361104,3.04032171,2085.1,2085.0,0.001]
[1773521362371,4.23930497,2085.1,2085.0,0.001]
[1773521366389,6.5592861,2085.2,2084.7,2.02690921]
[1773521366590,3.18787066,2085.4,2084.9,2.02590921]
[1773521366975,5.60287066,2085.4,2084.9,2.02590921]
[1773521367280,2.417,2085.4,2084.9,2.02590921]
[1773521368712,2.417,2085.4,2085.1,2.02590921]
[1773521369623,3.61582004,2085.4,2085.1,2.02590921]
[1773521369794,2.417,2085.4,2085.1,2.02590921]
[1773521374140,3.6158126,2085.4,2085.1,2.02590921]
[1773521375319,1.2008126,2085.4,2085.1,2.02590921]
[1773521376494,0.002,2085.4,2085.1,2.02590921]
[1773521377725,0.002,2085.4,2085.3,0.001]
[1773521383328,0.002,2085.4,2085.3,2.02690921]
[1773521383624,3.3813,2085.6,2085.4,2.02590921]
[1773521384930,3.3603,2085.7,2085.4,2.02590921]
[1773521385129,2.4,2085.7,2085.4,2.02590921]
[1773521385707,2.4,2085.7,2085.4,1.19876524]
[1773521385906,2.4,2085.7,2085.5,2.02590921]
[1773521387221,0.002,2085.8,2085.5,2.02590921]
[1773521387537,4.14575139,2086.1,2085.5,2.02590921]
[1773521387838,4.14575139,2086.1,2085.7,2.02590921]
[1773521388009,1.98702069,2086.1,2085.7,2.02590921]
[1773521388213,3.60335126,2086.2,2085.7,2.02590921]
[1773521388606,5.70357243,2086.2,2085.7,2.02590921]
[1773521389015,3.29853938,2086.3,2085.7,2.02590921]
[1773521389214,3.06052117,2086.3,2085.7,2.02590921]
[1773521389729,4.25881571,2086.3,2085.7,2.02590921]
[1773521390134,0.9603,2086.3,2085.9,2.02370264]
[1773521390334,3.29849723,2086.4,2085.9,2.02370264]
[1773521390335,4.25879723,2086.4,2085.9,2.02370264]
[1773521391811,2.15851622,2086.5,2085.9,2.02370264]
[1773521392027,2.15851622,2086.5,2085.9,1.96125158]
[1773521393224,2.15851622,2086.5,2086.0,1.96125158]
[1773521393838,0.9603,2086.5,2086.0,1.96125158]
[1773521394207,9.23051892,2086.6,2086.0,1.96125158]
[1773521394410,4.79193863,2086.9,2086.2,1.96125158]
[1773521394411,2.03996521,2086.9,2086.2,1.96125158]
[1773521395436,1.19800651,2086.8,2086.3,1.96125158]
[1773521403830,0.002,2086.6,2086.3,1.96125158]
[1773521404924,0.002,2086.6,2085.9,1.96125158]
[1773521404925,2.03996521,2086.5,2085.9,1.96125158]
[1773521405645,3.2382014,2086.4,2086.0,1.96125158]
[1773521405846,3.24012279,2086.6,2086.0,2.00919021]
[1773521406150,3.24012279,2086.6,2086.0,1.96125158]
[1773521406151,5.65212279,2086.6,2086.0,1.96125158]
[1773521406525,2.03996521,2086.5,2086.0,1.96125158]
[1773521409950,2.03996521,2086.3,2086.0,1.96125158]
[1773521414452,3.23828939,2086.3,2086.0,1.96125158]
[1773521417840,2.03996521,2086.2,2085.8,1.96125158]
[1773521418836,3.23836956,2086.2,2086.0,0.001]
[1773521423663,1.19840435,2086.2,2086.0,2.00646078]
[1773521424769,3.25869416,2086.2,2086.0,0.001]
[1773521425065,3.01928981,2086.1,2086.0,0.001]
[1773521426081,2.06028981,2086.0,2085.7,0.001]
[1773521426240,1.19850846,2086.0,2085.7,2.00646078]
[1773521432677,1.19850846,2086.0,2085.9,0.001]
[1773521434477,2.15750846,2086.0,2085.9,0.001]
[1773521438053,2.06028981,2085.9,2085.5,0.001]
[1773521438249,2.1609485,2085.8,2085.5,0.001]
[1773521438847,0.959,2085.9,2085.5,0.001]
[1773521439050,0.959,2085.9,2085.6,0.19211499]
[1773521440582,2.15758036,2085.9,2085.6,0.19211499]
[1773521441964,2.1609485,2085.8,2085.5,0.001]
[1773521442283,2.1609485,2085.8,2085.5,0.20271332]
[1773521442582,2.15758036,2085.9,2085.5,0.20271332]
[1773521443378,4.31852886,2085.9,2085.5,0.20271332]
[1773521444482,3.1199485,2085.9,2085.6,0.20781029]
[1773521446698,3.1199485,2085.9,2085.7,0.001]
[1773521446881,2.1609485,2085.8,2085.7,0.001]
[1773521447069,0.002,2085.8,2085.7,0.001]
[1773521447380,3.1194485,2085.6,2085.5,0.001]
[1773521450691,4.31814431,2085.6,2085.5,0.001]
[1773521450988,3.1194485,2085.6,2085.5,0.001]
[1773521460995,3.1214485,2085.6,2085.5,0.001]
[1773521468310,2.22805277,2085.3,2085.2,0.001]
[1773521468481,2.22805277,2085.3,2085.2,0.0002]
[1773521468805,4.65905277,2085.3,2085.2,0.0002]
[1773521469098,5.61805277,2085.3,2085.2,0.0002]
[1773521470500,0.959,2085.4,2085.2,0.27880291]
[1773521471604,0.959,2085.5,2085.2,0.27880291]
[1773521472508,0.961,2085.6,2085.2,0.27880291]
[1773521473184,0.961,2085.6,2085.4,0.001]
[1773521473387,0.002,2085.5,2085.4,0.001]
[1773521494505,0.002,2085.5,2085.4,0.24784184]
[1773521497645,0.961,2085.6,2085.4,0.24784184]
[1773521501640,0.002,2085.6,2085.4,0.24784184]
[1773521506540,3.1209485,2085.6,2085.4,0.001]
[1773521510038,2.1599485,2085.5,2085.4,0.001]
[1773521515664,3.1189485,2085.5,2085.4,0.001]
[1773521519275,2.1599485,2085.5,2085.4,0.001]
[1773521520887,3.1189485,2085.5,2085.4,0.001]
[1773521530151,3.1189485,2085.5,2085.0,4.79707393]
[1773521530352,0.04795948,2085.4,2085.1,1.19898326]
[1773521531183,0.04795948,2085.4,2085.1,1.2237913]
[1773521532185,3.16690798,2085.5,2085.1,1.2237913]
[1773521533684,0.002,2085.3,2085.1,1.2237913]
[1773521534373,0.002,2085.3,2085.2,0.01961411]
[1773521536191,0.002,2085.3,2085.1,0.001]
[1773521536383,2.26051313,2085.3,2085.1,0.001]
[1773521536579,0.002,2085.3,2085.1,1.19998171]
[1773521538966,0.002,2085.3,2085.1,0.001]
[1773521542267,0.002,2085.5,2085.1,0.75546555]
[1773521542468,1.00895948,2085.7,2085.1,0.75546555]
[1773521542785,3.26747261,2085.7,2085.1,0.75546555]
[1773521544191,3.26747261,2085.7,2085.2,1.19892576]
[1773521546005,3.26747261,2085.7,2085.3,0.001]
[1773521546470,0.002,2085.5,2085.3,0.001]
[1773521549812,2.25851313,2085.6,2085.3,0.001]
[1773521557821,2.25851313,2085.6,2085.5,0.001]
[1773521558421,2.26051313,2085.6,2085.5,0.001]
[1773521559904,0.002,2085.7,2085.5,0.001]
[1773521565722,2.26051313,2085.7,2085.5,0.001]
[1773521565926,2.26051313,2085.7,2085.3,1.19986826]
[1773521566498,2.25801313,2085.5,2085.3,1.19986826]
[1773521569632,2.15442017,2085.6,2085.3,2.01335456]
[1773521569812,2.15442017,2085.8,2085.3,2.01335456]
[1773521570820,2.15442017,2085.8,2085.5,0.001]
[1773521571330,0.002,2085.6,2085.5,0.001]
[1773521586545,0.961,2085.6,2085.5,0.001]
[1773521586737,0.002,2085.6,2085.5,0.001]
[1773521590520,2.25408483,2085.6,2085.5,0.001]
[1773521591426,1.84414536,2085.6,2085.5,0.001]
[1773521593640,2.25408483,2085.8,2085.5,0.001]
[1773521594565,0.002,2085.8,2085.5,2.24205189]
[1773521595858,0.002,2085.8,2085.7,0.001]
[1773521598573,2.25408483,2085.8,2085.7,0.001]
[1773521607280,3.21308483,2085.8,2085.7,0.001]
[1773521610892,2.20069751,2085.8,2085.4,2.03614954]
[1773521611054,0.961,2085.8,2085.4,2.03614954]
[1773521612185,0.961,2085.8,2085.5,3.23490283]
[1773521614284,0.002,2085.8,2085.6,2.03614954]
[1773521616874,0.002,2085.8,2085.6,3.23479396]
[1773521618997,0.002,2086.0,2085.7,2.03614954]
[1773521620993,0.002,2086.0,2085.7,3.23476264]
[1773521621498,0.002,2086.0,2085.8,2.03614954]
[1773521625606,0.002,2086.0,2085.8,3.23469475]
[1773521633922,0.002,2086.0,2085.8,3.23569475]
[1773521638205,2.10123225,2086.0,2085.8,1.19954521]
[1773521638738,0.002,2086.0,2085.8,1.19954521]
[1773521641440,0.002,2086.0,2085.8,0.001]
[1773521642727,2.10123225,2086.1,2085.8,0.001]
[1773521642941,2.10043225,2086.1,2085.8,1.983831]
[1773521644411,1.1983175,2086.3,2085.9,1.982831]
[1773521644412,3.05823225,2086.3,2085.9,1.982831]
[1773521644736,3.05823225,2086.3,2086.0,1.982831]
[1773521646147,3.05823225,2086.3,2086.0,1.983831]
[1773521646747,3.06023225,2086.3,2086.0,3.18228994]
[1773521651047,0.002,2086.3,2086.1,1.982831]
[1773521653958,2.10123225,2086.3,2086.0,0.001]
[1773521654567,2.10123225,2086.3,2086.0,1.983831]
[1773521656249,2.10123225,2086.3,2086.0,3.18229211]
[1773521657159,2.10123225,2086.3,2086.0,1.983831]
[1773521658259,0.002,2086.1,2086.0,1.983831]
[1773521658764,2.10123225,2086.3,2086.0,1.983831]
[1773521659747,2.10123225,2086.3,2086.0,3.18228964]
[1773521670677,2.10123225,2086.3,2086.2,0.001]
[1773521676770,0.002,2086.3,2086.2,0.001]
[1773521681663,2.05580038,2086.1,2086.0,0.001]
[1773521683597,2.05780038,2086.1,2086.0,0.001]
[1773521688411,3.01680038,2086.1,2086.0,0.001]
[1773521691646,4.21520889,2086.1,2086.0,0.001]
[1773521696753,0.002,2086.1,2086.0,1.82227379]
[1773521697446,0.002,2086.1,2086.0,0.001]
[1773521700746,1.99002591,2086.1,2086.0,0.001]
[1773521700934,1.98802591,2086.0,2085.8,0.001]
[1773521701747,0.961,2086.1,2085.8,0.001]
[1773521701922,0.002,2086.1,2085.8,1.82227379]
[1773521703759,0.002,2086.1,2085.9,1.82127379]
[1773521709363,0.002,2086.0,2085.9,1.82227379]
[1773521717062,0.002,2086.0,2085.9,0.001]
[1773521717838,1.99002591,2086.0,2085.9,0.001]
[1773521723072,0.002,2086.0,2085.9,0.001]
[1773521725384,1.84045112,2086.0,2085.9,0.001]
[1773521729186,2.79975112,2086.0,2085.9,0.001]
[1773521736803,1.83845112,2085.9,2085.8,0.001]
[1773521737408,0.002,2086.0,2085.8,0.001]
[1773521744814,1.84045112,2086.0,2085.8,0.001]
[1773521746114,2.79975112,2086.0,2085.8,0.001]
[1773521748714,0.9613,2086.0,2085.8,1.90943357]
[1773521764655,0.002,2086.1,2085.8,1.19954138]
[1773521764808,0.002,2086.4,2085.9,1.87129536]
[1773521765008,0.9613,2086.4,2085.9,1.87129536]
[1773521767111,0.9613,2086.4,2086.1,1.87129536]
[1773521769860,0.002,2086.2,2086.1,1.87129536]
[1773521770321,0.9593,2086.4,2086.1,3.06970387]
[1773521770640,0.9593,2086.6,2086.2,1.87129536]
[1773521771622,0.9593,2086.6,2086.2,3.0696142]
[1773521771828,0.9593,2086.6,2086.3,1.87129536]
[1773521774157,0.9593,2086.6,2086.4,1.87129536]
[1773521777763,1.90395931,2086.5,2086.1,1.19840851]
[1773521778063,2.15743257,2086.6,2086.0,0.001]
[1773521778064,2.86325931,2086.2,2086.0,0.001]
[1773521784684,0.002,2086.6,2086.1,1.8814963]
[1773521784869,0.002,2086.9,2086.7,1.8814963]
[1773521790490,0.002,2086.9,2086.7,3.07955928]
[1773521790657,0.002,2086.9,2086.7,1.8814963]
[1773521794488,0.006,2087.1,2086.8,1.8814963]
[1773521795974,0.002,2086.9,2086.8,1.8814963]
[1773521801012,1.21909889,2087.0,2086.6,1.8824963]
[1773521804512,1.19789743,2087.0,2086.6,1.8824963]
[1773521804809,1.10948118,2086.9,2086.6,1.8824963]
[1773521805602,1.10948118,2086.9,2086.6,0.001]
[1773521808406,1.00381364,2086.8,2086.6,0.001]
[1773521808602,1.00581364,2086.8,2086.6,0.001]
[1773521811995,0.87960079,2086.7,2086.6,0.001]
[1773521815324,0.78726912,2086.8,2086.6,0.001]
[1773521823639,0.609193,2086.7,2086.4,0.001]
[1773521823857,0.611193,2086.7,2086.4,0.001]
[1773521824642,0.002,2086.7,2086.4,1.40005201]
[1773521830424,0.46892509,2086.7,2086.4,1.40005201]
[1773521835658,0.002,2086.7,2086.5,1.39905201]
[1773521836629,0.002,2086.7,2086.6,0.001]
[1773521838766,0.32086332,2086.7,2086.6,0.001]
[1773521845370,1.51892724,2086.7,2086.6,0.001]
[1773521845568,0.18287208,2086.6,2086.4,0.001]
[1773521849461,1.31997716,2086.7,2086.4,0.001]
[1773521849667,0.002,2086.6,2086.4,0.001]
[1773521850275,0.002,2086.6,2086.4,1.11947498]
[1773521855463,0.002,2086.7,2086.5,1.11847498]
[1773521860598,0.002,2086.7,2086.4,0.001]
[1773521860803,0.002,2086.7,2086.4,1.11947498]
[1773521862001,0.002,2086.5,2086.4,1.11947498]
[1773521862978,0.92646526,2086.8,2086.4,1.19922649]
[1773521863319,4.79096028,2087.3,2086.4,1.19922649]
[1773521863320,1.19760479,2087.5,2086.8,1.11847498]
[1773521863618,0.93646526,2087.4,2086.8,1.11847498]
[1773521864474,1.19777692,2087.2,2086.8,1.11847498]
[1773521868205,4.79100241,2087.3,2086.8,1.11847498]
[1773521868406,0.93646526,2087.2,2086.8,1.11847498]
[1773521870714,2.13428737,2087.2,2086.8,1.11847498]
[1773521872184,1.19782211,2087.2,2086.8,1.11847498]
[1773521873207,2.15696216,2087.4,2086.8,1.11847498]
[1773521873912,2.15696216,2087.4,2087.0,0.001]
[1773521874209,0.93646526,2087.3,2087.0,0.001]
[1773521874405,0.9593,2087.2,2087.0,0.001]
[1773521874777,0.9613,2087.2,2087.0,0.001]
[1773521875282,1.19783431,2087.1,2087.0,0.001]
[1773521875482,2.15911906,2087.2,2087.0,0.001]
[1773521875678,3.09558432,2087.2,2087.0,0.001]
[1773521878016,3.09558432,2087.2,2087.0,1.10565291]
[1773521878185,3.09558432,2087.2,2086.9,0.96210843]
[1773521880719,2.13628432,2087.2,2086.9,0.96210843]
[1773521885133,0.9593,2087.1,2086.9,0.96210843]
[1773521885306,2.13628432,2087.2,2086.9,0.96210843]
[1773521886707,2.13628432,2087.2,2087.0,0.001]
[1773521886907,1.19981906,2087.2,2087.0,0.001]
[1773521887930,0.002,2087.2,2087.1,0.96210843]
[1773521888132,0.93846526,2087.2,2087.0,0.96310843]